[Event "Chinese Team-ch Men 2025"]
[Site "Zhang Jiakou Hebei"]
[Date "2025.04.30"]
[Round "6.4"]
[White "Huang, Renjie"]
[Black "Jin, Yueheng"]
[Result "1/2-1/2"]
[Annotator "ChessBase"]
[ECO "C48"]
[WhiteElo "2491"]
[BlackElo "2383"]
[PlyCount "95"]
[EventDate "2025.04.26"]
[EventType "team-tourn"]
[EventCountry "CHN"]
[SourceTitle "playchess.com"]
[Source "ChessBase"]
[SourceQuality "1"]
[TimeControl "5400+30"]

1. e4 {[%emt 0:00:01]} e5 {[%emt 0:00:13]} 2. Nf3 {[%emt 0:00:22]} Nc6 {[%emt 0:00:12]} 3. Nc3 {[%emt 0:00:04]} Nf6 {[%emt 0:00:09]} 4. Bb5 {[%emt 0:00:21]} Nd4 {[%emt 0:00:25]} 5. O-O {[%emt 0:02:24]} c6 {[%emt 0:08:40]} 6. Bd3 {[%emt 0:00:23]} Nxf3+ {[%emt 0:00:41]} 7. Qxf3 {[%emt 0:00:03]} d6 {[%emt 0:00:22]} 8. Be2 {[%emt 0:00:37]} g6 {[%emt 0:01:29]} 9. d3 {[%emt 0:00:08]} Nh5 {[%emt 0:03:06]} 10. Be3 {[%emt 0:01:12]} Bg7 {[%emt 0:00:25]} 11. Rad1 {[%emt 0:00:16]} O-O {[%emt 0:01:37]} 12. d4 {[%emt 0:00:09]} f5 {[%emt 0:00:28]} 13. dxe5 {[%emt 0:02:41]} Bxe5 {[%emt 0:00:15]} 14. Bd4 {[%emt 0:01:00]} Bxd4 {[%emt 0:08:23]} 15. Rxd4 {[%emt 0:00:40]} fxe4 {[%emt 0:00:17]} 16. Qe3 {[%emt 0:01:03]} Ng7 {[%emt 0:06:45]} 17. Rxe4 {[%emt 0:07:36]} d5 {[%emt 0:02:07]} 18. Rf4 {[%emt 0:00:43]} Rxf4 {[%emt 0:05:27]} 19. Qxf4 {[%emt 0:00:03]} Qf8 {[%emt 0:00:35]} 20. Qd2 {[%emt 0:04:23]} Qb4 {[%emt 0:04:00]} 21. Rb1 {[%emt 0:01:31]} d4 {[%emt 0:12:13]} 22. Ne4 {[%emt 0:03:05]} Qxd2 {[%emt 0:00:04]} 23. Nxd2 {[%emt 0:00:02]} Bf5 {[%emt 0:00:53]} 24. Rc1 {[%emt 0:01:20]} Rd8 {[%emt 0:07:52]} 25. Kf1 {[%emt 0:01:29]} d3 {[%emt 0:06:14]} 26. cxd3 {[%emt 0:02:24]} Bxd3 {[%emt 0:00:04]} 27. Bxd3 {[%emt 0:00:07]} Rxd3 {[%emt 0:00:05]} 28. Nb3 {[%emt 0:00:07]} Ne6 {[%emt 0:03:11]} 29. Re1 {[%emt 0:01:18]} Kf7 {[%emt 0:00:43]} 30. Rxe6 {[%emt 0:01:16]} Rxb3 {[%emt 0:00:05]} 31. Rxc6 {[%emt 0:00:15]} Rxb2 {[%emt 0:00:07]} 32. Rc7+ {[%emt 0:00:04]} Kg8 {[%emt 0:00:12]} 33. g4 {[%emt 0:01:13]} Rxa2 {[%emt 0:02:19]} 34. Rxb7 {[%emt 0:00:06]} g5 {[%emt 0:01:24]} 35. Kg2 {[%emt 0:01:14]} Ra3 {[%emt 0:00:42]} 36. f3 {[%emt 0:00:59]} h6 {[%emt 0:01:18]} 37. Kg3 {[%emt 0:01:21]} Kh8 {[%emt 0:03:03]} 38. Rf7 {[%emt 0:01:01]} Kg8 {[%emt 0:00:10]} 39. Rf5 {[%emt 0:00:23]} Kg7 {[%emt 0:00:17]} 40. h4 {[%emt 0:00:11]} Kg6 {[%emt 0:00:42]} 41. h5+ {[%emt 0:00:46]} Kg7 {[%emt 0:00:05]} 42. Kf2 {[%emt 0:00:16]} Rb3 {[%emt 0:00:38]} 43. Ra5 {[%emt 0:02:09]} Rb7 {[%emt 0:00:07]} 44. Ra6 {[%emt 0:00:23]} Re7 {[%emt 0:00:13]} 45. Kg3 {[%emt 0:00:40]} Kh7 {[%emt 0:01:09]} 46. Kg2 {[%emt 0:00:29]} Kg7 {[%emt 0:00:07]} 47. Kg3 {[%emt 0:00:06]} Kh7 {[%emt 0:00:04]} 48. Kg2 {[%emt 0:00:04]} 1/2-1/2

[Event "Chinese Team-ch Men 2025"]
[Site "Zhang Jiakou Hebei"]
[Date "2025.04.30"]
[Round "6.5"]
[White "Xu, Yi"]
[Black "Dai, Changren"]
[Result "1/2-1/2"]
[Annotator "ChessBase"]
[ECO "B31"]
[WhiteElo "2480"]
[BlackElo "2527"]
[PlyCount "60"]
[EventDate "2025.04.26"]
[EventType "team-tourn"]
[EventCountry "CHN"]
[SourceTitle "playchess.com"]
[Source "ChessBase"]
[SourceQuality "1"]
[TimeControl "5400+30"]

1. e4 {[%emt 0:00:03]} c5 {[%emt 0:00:12]} 2. Nf3 {[%emt 0:00:06]} Nc6 {[%emt 0:00:03]} 3. Bb5 {[%emt 0:01:54]} g6 {[%emt 0:00:27]} 4. O-O {[%emt 0:00:50]} Bg7 {[%emt 0:00:02]} 5. c3 {[%emt 0:00:29]} Nf6 {[%emt 0:00:08]} 6. Re1 {[%emt 0:00:23]} O-O {[%emt 0:00:06]} 7. d4 {[%emt 0:02:25]} a6 {[%emt 0:00:02]} 8. Bf1 {[%emt 0:05:04]} d5 {[%emt 0:00:29]} 9. exd5 {[%emt 0:08:36]} Qxd5 {[%emt 0:03:54]} 10. dxc5 {[%emt 0:07:29]} Qxc5 {[%emt 0:01:59]} 11. h3 {[%emt 0:00:31]} e5 {[%emt 0:17:26]} 12. Nbd2 {[%emt 0:02:05]} Rd8 {[%emt 0:08:01]} 13. Qa4 {[%emt 0:07:03]} h6 {[%emt 0:07:00]} 14. Nb3 {[%emt 0:10:39]} Qe7 {[%emt 0:03:55]} 15. Na5 {[%emt 0:02:44]} Nxa5 {[%emt 0:26:08]} 16. Rxe5 {[%emt 0:04:18]} Qc7 {[%emt 0:13:30]} 17. Qxa5 {[%emt 0:00:37]} Qxa5 {[%emt 0:00:29]} 18. Rxa5 {[%emt 0:00:05]} Ne4 {[%emt 0:00:44]} 19. Nd4 {[%emt 0:10:11]} b6 {[%emt 0:03:10]} 20. Ra4 {[%emt 0:00:17]} Bb7 {[%emt 0:02:05]} 21. Be3 {[%emt 0:02:48]} b5 {[%emt 0:00:41]} 22. Ra5 {[%emt 0:02:46]} b4 {[%emt 0:01:41]} 23. Rc1 {[%emt 0:03:39]} Rac8 {[%emt 0:01:16]} 24. Ne2 {[%emt 0:00:43]} bxc3 {[%emt 0:02:26]} 25. Nxc3 {[%emt 0:00:22]} Nxc3 {[%emt 0:01:41]} 26. bxc3 {[%emt 0:00:06]} Bxc3 {[%emt 0:00:42]} 27. Rc5 {[%emt 0:02:41]} Rxc5 {[%emt 0:00:50]} 28. Bxc5 {[%emt 0:00:04]} Bd4 {[%emt 0:00:23]} 29. Bxd4 {[%emt 0:00:28]} Rxd4 {[%emt 0:00:01]} 30. Rc7 {[%emt 0:02:58]} Bd5 {[%emt 0:01:53]} 1/2-1/2

[Event "Chinese Team-ch Men 2025"]
[Site "Zhang Jiakou Hebei"]
[Date "2025.04.30"]
[Round "6.6"]
[White "Wang, Shixu B"]
[Black "Lou, Yiping"]
[Result "1/2-1/2"]
[Annotator "ChessBase"]
[ECO "E59"]
[WhiteElo "2452"]
[BlackElo "2464"]
[PlyCount "158"]
[EventDate "2025.04.26"]
[EventType "team-tourn"]
[EventCountry "CHN"]
[SourceTitle "playchess.com"]
[Source "ChessBase"]
[SourceQuality "1"]
[TimeControl "5400+30"]

1. d4 {[%emt 0:00:13]} Nf6 {[%emt 0:00:10]} 2. c4 {[%emt 0:00:19]} e6 {[%emt 0:00:09]} 3. Nc3 {[%emt 0:00:32]} Bb4 {[%emt 0:00:06]} 4. e3 {[%emt 0:00:08]} O-O {[%emt 0:00:41]} 5. Bd3 {[%emt 0:00:08]} d5 {[%emt 0:00:25]} 6. a3 {[%emt 0:00:19]} Bxc3+ {[%emt 0:01:35]} 7. bxc3 {[%emt 0:00:08]} dxc4 {[%emt 0:00:02]} 8. Bxc4 {[%emt 0:00:08]} c5 {[%emt 0:00:03]} 9. Nf3 {[%emt 0:00:21]} Qc7 {[%emt 0:00:05]} 10. Be2 {[%emt 0:00:05]} Nc6 {[%emt 0:00:21]} 11. O-O {[%emt 0:00:14]} e5 {[%emt 0:00:55]} 12. Bb2 {[%emt 0:00:17]} Rd8 {[%emt 0:06:09]} 13. Qc2 {[%emt 0:00:43]} Bg4 {[%emt 0:02:04]} 14. h3 {[%emt 0:01:57]} Bh5 {[%emt 0:01:09]} 15. Rae1 {[%emt 0:01:33]} Rac8 {[%emt 0:07:52]} 16. dxe5 {[%emt 0:08:27]} Nxe5 {[%emt 0:01:28]} 17. Nxe5 {[%emt 0:00:25]} Bxe2 {[%emt 0:01:23]} 18. Qxe2 {[%emt 0:00:10]} Qxe5 {[%emt 0:00:04]} 19. c4 {[%emt 0:00:06]} Qd6 {[%emt 0:07:04]} 20. Qf3 {[%emt 0:17:55]} Ne8 {[%emt 0:08:31]} 21. Rd1 {[%emt 0:02:36]} Qb6 {[%emt 0:00:32]} 22. Ba1 {[%emt 0:09:03]} Rxd1 {[%emt 0:06:20]} 23. Rxd1 {[%emt 0:00:08]} Rd8 {[%emt 0:00:06]} 24. Rd2 {[%emt 0:00:47]} Rd7 25. Rxd7 {[%emt 0:00:29]} Qc7 {[%emt 0:00:04]} 26. Rd8 Qxd8 {[%emt 0:00:59]} 27. Qxb7 {[%emt 0:01:33]} Qd1+ {[%emt 0:02:35]} 28. Kh2 {[%emt 0:00:05]} Qxa1 {[%emt 0:00:20]} 29. Qe7 {[%emt 0:00:05]} g6 {[%emt 0:00:37]} 30. Qxe8+ {[%emt 0:00:05]} Kg7 {[%emt 0:00:01]} 31. a4 {[%emt 0:01:24]} Qc3 {[%emt 0:05:23]} 32. Qe7 {[%emt 0:22:38]} Qxc4 {[%emt 0:07:36]} 33. Qxa7 {[%emt 0:00:05]} Qc3 {[%emt 0:00:04]} 34. Qc7 {[%emt 0:13:39]} c4 {[%emt 0:00:18]} 35. a5 {[%emt 0:01:33]} Qa1 {[%emt 0:00:10]} 36. Qxc4 {[%emt 0:01:36]} Qxa5 {[%emt 0:00:11]} 37. Qd4+ {[%emt 0:00:06]} Kg8 {[%emt 0:01:40]} 38. Qf6 {[%emt 0:00:07]} Qd5 {[%emt 0:03:34]} 39. f3 {[%emt 0:00:45]} Qd2 {[%emt 0:01:25]} 40. e4 {[%emt 0:05:53]} Qe1 {[%emt 0:01:01]} 41. e5 {[%emt 0:00:04]} Qc3 {[%emt 0:01:49]} 42. Kg3 {[%emt 0:02:08]} Qd4 {[%emt 0:02:21]} 43. h4 {[%emt 0:02:46]} h5 {[%emt 0:01:01]} 44. Qd6 {[%emt 0:00:16]} Qe3 {[%emt 0:00:48]} 45. Qd8+ {[%emt 0:00:15]} Kg7 {[%emt 0:03:00]} 46. Qf6+ {[%emt 0:00:19]} Kg8 {[%emt 0:00:12]} 47. Qd8+ {[%emt 0:01:35]} Kg7 {[%emt 0:00:05]} 48. Qf6+ {[%emt 0:00:19]} Kg8 {[%emt 0:00:08]} 49. Qf4 {[%emt 0:02:59]} Qe1+ {[%emt 0:00:14]} 50. Kh2 {[%emt 0:00:04]} Kg7 {[%emt 0:05:02]} 51. Qd4 {[%emt 0:00:06]} Kg8 {[%emt 0:00:10]} 52. Qe4 {[%emt 0:00:34]} Qd2 {[%emt 0:00:34]} 53. Kh3 {[%emt 0:00:31]} Qd7+ {[%emt 0:00:36]} 54. Kg3 {[%emt 0:00:06]} Qd2 {[%emt 0:00:17]} 55. Qa8+ {[%emt 0:03:58]} Kg7 {[%emt 0:00:08]} 56. Qe4 {[%emt 0:00:06]} Kg8 {[%emt 0:00:04]} 57. Kh2 {[%emt 0:02:59]} Kg7 {[%emt 0:00:52]} 58. Kg1 {[%emt 0:00:05]} Qd1+ {[%emt 0:00:24]} 59. Kf2 {[%emt 0:00:05]} Qd2+ {[%emt 0:00:04]} 60. Qe2 {[%emt 0:00:24]} Qf4 {[%emt 0:01:05]} 61. Qe4 {[%emt 0:02:53]} Qd2+ {[%emt 0:00:04]} 62. Kg1 {[%emt 0:00:11]} Qd1+ {[%emt 0:00:11]} 63. Kh2 {[%emt 0:00:02]} Qd2 {[%emt 0:00:35]} 64. Kh3 {[%emt 0:00:22]} Qd7+ {[%emt 0:00:28]} 65. g4 {[%emt 0:00:08]} hxg4+ {[%emt 0:03:46]} 66. fxg4 {[%emt 0:00:10]} Qd2 {[%emt 0:00:48]} 67. Kg3 {[%emt 0:03:13]} Qc1 {[%emt 0:03:31]} 68. Qe2 {[%emt 0:00:21]} Qg1+ {[%emt 0:00:38]} 69. Kf4 {[%emt 0:00:07]} Qd4+ {[%emt 0:01:23]} 70. Kf3 {[%emt 0:00:02]} Qd5+ {[%emt 0:00:40]} 71. Kf4 {[%emt 0:00:07]} Qd4+ {[%emt 0:00:12]} 72. Kf3 {[%emt 0:00:05]} Qd5+ {[%emt 0:00:26]} 73. Kg3 {[%emt 0:00:06]} Qd4 {[%emt 0:00:40]} 74. Kh3 {[%emt 0:01:07]} Qc3+ {[%emt 0:00:50]} 75. Kg2 {[%emt 0:00:11]} Qd4 {[%emt 0:00:05]} 76. Kh2 {[%emt 0:00:39]} Qf4+ {[%emt 0:00:57]} 77. Kh3 {[%emt 0:00:12]} Qd4 {[%emt 0:00:29]} 78. Kg2 {[%emt 0:01:41]} Qd5+ {[%emt 0:01:05]} 79. Kg3 {[%emt 0:00:10]} Qd4 {[%emt 0:00:23]} 1/2-1/2

[Event "Chinese Team-ch Men 2025"]
[Site "Zhang Jiakou Hebei"]
[Date "2025.04.30"]
[Round "6.7"]
[White "Meng, Yihan"]
[Black "Chu, Weichao"]
[Result "1-0"]
[Annotator "ChessBase"]
[ECO "B13"]
[WhiteElo "2433"]
[BlackElo "2406"]
[PlyCount "45"]
[EventDate "2025.04.26"]
[EventType "team-tourn"]
[EventCountry "CHN"]
[SourceTitle "playchess.com"]
[Source "ChessBase"]
[SourceQuality "1"]
[TimeControl "5400+30"]

1. e4 {[%emt 0:00:03]} c6 {[%emt 0:00:07]} 2. d4 {[%emt 0:00:06]} d5 {[%emt 0:00:05]} 3. exd5 {[%emt 0:00:04]} cxd5 {[%emt 0:00:08]} 4. Bd3 {[%emt 0:00:04]} Nc6 {[%emt 0:00:50]} 5. c3 {[%emt 0:00:05]} Nf6 {[%emt 0:00:12]} 6. Bf4 {[%emt 0:00:06]} Bg4 {[%emt 0:02:35]} 7. Qb3 {[%emt 0:00:06]} Qd7 {[%emt 0:00:09]} 8. Nd2 {[%emt 0:00:05]} e6 {[%emt 0:00:11]} 9. Ngf3 {[%emt 0:00:05]} Bd6 {[%emt 0:01:06]} 10. Bxd6 {[%emt 0:00:08]} Qxd6 {[%emt 0:00:05]} 11. O-O {[%emt 0:00:06]} O-O {[%emt 0:00:25]} 12. Rfe1 {[%emt 0:00:06]} Bxf3 {[%emt 0:03:46]} 13. Nxf3 {[%emt 0:00:07]} Rab8 {[%emt 0:00:21]} 14. Qc2 {[%emt 0:01:31]} b5 {[%emt 0:08:18]} 15. b4 {[%emt 0:03:51]} Rfc8 {[%emt 0:06:39]} 16. Qe2 {[%emt 0:00:50]} a5 {[%emt 0:01:26]} 17. a4 {[%emt 0:10:21]} bxa4 {[%emt 0:04:29]} 18. b5 {[%emt 0:00:20]} Na7 {[%emt 0:01:25]} 19. Rxa4 {[%emt 0:15:36]} Qb6 {[%emt 0:00:31]} 20. Rb1 {[%emt 0:03:25]} Rxc3 {[%emt 0:00:52]} 21. Ne5 {[%emt 0:29:15]} Nxb5 {[%emt 0:19:26]} 22. Qe1 {[%emt 0:05:16]} Qc7 {[%emt 0:05:42]} 23. Bxb5 {[%emt 0:00:45]} 1-0

[Event "Chinese Team-ch Men 2025"]
[Site "Zhang Jiakou Hebei"]
[Date "2025.04.30"]
[Round "6.8"]
[White "Xi, Qi"]
[Black "Gong, Sunle"]
[Result "1/2-1/2"]
[Annotator "ChessBase"]
[ECO "D37"]
[WhiteElo "2257"]
[BlackElo "2410"]
[PlyCount "135"]
[EventDate "2025.04.26"]
[EventType "team-tourn"]
[EventCountry "CHN"]
[SourceTitle "playchess.com"]
[Source "ChessBase"]
[SourceQuality "1"]
[TimeControl "5400+30"]

1. d4 {[%emt 0:00:04]} d5 {[%emt 0:00:04]} 2. c4 {[%emt 0:00:11]} e6 {[%emt 0:00:11]} 3. Nf3 {[%emt 0:00:10]} Nf6 {[%emt 0:00:04]} 4. Nc3 {[%emt 0:00:10]} Be7 {[%emt 0:00:10]} 5. Bf4 {[%emt 0:00:56]} O-O {[%emt 0:00:06]} 6. e3 {[%emt 0:00:06]} Nbd7 {[%emt 0:00:15]} 7. c5 {[%emt 0:10:21]} Nh5 {[%emt 0:03:00]} 8. Bd3 {[%emt 0:00:41]} Nxf4 {[%emt 0:00:05]} 9. exf4 {[%emt 0:00:03]} b6 {[%emt 0:00:05]} 10. b4 {[%emt 0:00:19]} a5 {[%emt 0:00:04]} 11. a3 {[%emt 0:00:04]} c6 {[%emt 0:00:06]} 12. O-O {[%emt 0:00:24]} Ba6 {[%emt 0:00:05]} 13. Bxa6 {[%emt 0:01:30]} Rxa6 {[%emt 0:00:03]} 14. Qe2 {[%emt 0:00:14]} b5 {[%emt 0:08:46]} 15. Na2 {[%emt 0:17:19]} Ra7 {[%emt 0:08:40]} 16. a4 {[%emt 0:02:00]} bxa4 {[%emt 0:01:39]} 17. b5 {[%emt 0:02:10]} cxb5 {[%emt 0:03:09]} 18. Qxb5 {[%emt 0:00:31]} Qc7 {[%emt 0:12:28]} 19. g3 {[%emt 0:07:48]} Bf6 {[%emt 0:01:19]} 20. Rfc1 {[%emt 0:12:38]} Rb7 {[%emt 0:09:28]} 21. Qxa4 {[%emt 0:01:02]} Nb8 {[%emt 0:00:26]} 22. Rab1 {[%emt 0:05:23]} Nc6 {[%emt 0:03:22]} 23. Rb6 {[%emt 0:11:02]} Rc8 {[%emt 0:02:05]} 24. Rcb1 {[%emt 0:00:16]} Rcb8 {[%emt 0:00:41]} 25. Rxb7 {[%emt 0:01:36]} Rxb7 {[%emt 0:00:04]} 26. Rxb7 {[%emt 0:00:05]} Qxb7 {[%emt 0:00:03]} 27. Nc3 {[%emt 0:00:13]} g6 {[%emt 0:05:10]} 28. Nb5 {[%emt 0:01:47]} Qd7 {[%emt 0:00:48]} 29. Qa3 {[%emt 0:05:00]} Qb7 {[%emt 0:00:19]} 30. Qa4 {[%emt 0:01:13]} Qd7 {[%emt 0:00:13]} 31. Qa3 {[%emt 0:02:34]} Kg7 {[%emt 0:08:35]} 32. Kg2 {[%emt 0:00:53]} Qb7 {[%emt 0:03:16]} 33. Nd6 {[%emt 0:01:33]} Qd7 {[%emt 0:00:29]} 34. Nb5 {[%emt 0:02:59]} Bd8 {[%emt 0:06:20]} 35. Nc3 {[%emt 0:05:38]} Nb4 {[%emt 0:02:15]} 36. h4 {[%emt 0:00:36]} h5 {[%emt 0:00:53]} 37. Ne5 {[%emt 0:00:30]} Qe8 {[%emt 0:00:27]} 38. Qb3 {[%emt 0:01:49]} f6 {[%emt 0:00:35]} 39. Nf3 {[%emt 0:00:02]} Qc6 {[%emt 0:00:27]} 40. Qa3 {[%emt 0:02:30]} Bc7 {[%emt 0:00:27]} 41. Kg1 {[%emt 0:01:51]} Kf8 {[%emt 0:00:17]} 42. Qa4 {[%emt 0:02:42]} Qxa4 {[%emt 0:00:31]} 43. Nxa4 {[%emt 0:00:00]} Ke7 {[%emt 0:00:14]} 44. Kf1 {[%emt 0:00:14]} Na2 {[%emt 0:01:04]} 45. Ke2 {[%emt 0:01:47]} Kd7 {[%emt 0:00:17]} 46. Kd2 {[%emt 0:01:27]} Kc6 {[%emt 0:00:03]} 47. Ne1 {[%emt 0:00:57]} Kb5 {[%emt 0:05:09]} 48. Nc3+ {[%emt 0:00:19]} Nxc3 {[%emt 0:00:04]} 49. Kxc3 {[%emt 0:00:01]} a4 {[%emt 0:00:37]} 50. Nc2 {[%emt 0:00:10]} Ba5+ {[%emt 0:00:08]} 51. Kb2 {[%emt 0:01:34]} Bd2 {[%emt 0:01:18]} 52. Na3+ {[%emt 0:00:10]} Kc6 {[%emt 0:00:10]} 53. Nc2 {[%emt 0:00:28]} e5 {[%emt 0:01:18]} 54. fxe5 {[%emt 0:00:03]} fxe5 {[%emt 0:00:02]} 55. dxe5 {[%emt 0:00:55]} Kxc5 {[%emt 0:00:04]} 56. Ka3 {[%emt 0:00:53]} d4 {[%emt 0:00:03]} 57. e6 {[%emt 0:00:33]} d3 {[%emt 0:00:23]} 58. Ne3 {[%emt 0:00:31]} Bc1+ {[%emt 0:00:03]} 59. Kxa4 {[%emt 0:00:29]} Bxe3 {[%emt 0:00:04]} 60. Kb3 {[%emt 0:00:16]} Bg5 {[%emt 0:01:34]} 61. hxg5 {[%emt 0:00:14]} Kd6 {[%emt 0:00:03]} 62. Kc3 {[%emt 0:00:20]} Kxe6 {[%emt 0:00:05]} 63. Kxd3 {[%emt 0:00:04]} Kf5 {[%emt 0:00:03]} 64. f4 {[%emt 0:01:29]} h4 {[%emt 0:00:17]} 65. gxh4 {[%emt 0:00:11]} Kxf4 {[%emt 0:00:05]} 66. h5 {[%emt 0:00:29]} Kxg5 {[%emt 0:00:03]} 67. hxg6 {[%emt 0:00:02]} Kxg6 {[%emt 0:00:03]} 68. Ke4 {[%emt 0:00:38]} 1/2-1/2

[Event "Chinese Team-ch Men 2025"]
[Site "Zhang Jiakou Hebei"]
[Date "2025.04.30"]
[Round "6.9"]
[White "Li, Chao b"]
[Black "Xu, Xiangyu"]
[Result "1/2-1/2"]
[Annotator "ChessBase"]
[ECO "C42"]
[WhiteElo "2624"]
[BlackElo "2623"]
[PlyCount "75"]
[EventDate "2025.04.26"]
[EventType "team-tourn"]
[EventCountry "CHN"]
[SourceTitle "playchess.com"]
[Source "ChessBase"]
[SourceQuality "1"]
[TimeControl "5400+30"]

1. e4 {[%emt 0:00:05]} e5 {[%emt 0:00:36]} 2. Nf3 {[%emt 0:00:09]} Nf6 {[%emt 0:00:16]} 3. Nxe5 {[%emt 0:03:26]} d6 {[%emt 0:00:09]} 4. Nf3 {[%emt 0:00:06]} Nxe4 {[%emt 0:00:08]} 5. Nc3 {[%emt 0:00:07]} Nxc3 {[%emt 0:04:24]} 6. dxc3 {[%emt 0:00:05]} Be7 {[%emt 0:00:17]} 7. Be3 {[%emt 0:00:14]} Nc6 {[%emt 0:03:51]} 8. Qd2 {[%emt 0:00:40]} Be6 {[%emt 0:00:37]} 9. O-O-O {[%emt 0:00:18]} Qd7 {[%emt 0:00:00]} 10. Kb1 {[%emt 0:00:33]} Bf6 {[%emt 0:01:11]} 11. h4 {[%emt 0:00:29]} O-O-O {[%emt 0:04:20]} 12. Bg5 {[%emt 0:01:53]} Qe7 {[%emt 0:00:22]} 13. Bxf6 {[%emt 0:00:17]} Qxf6 {[%emt 0:00:08]} 14. Qg5 {[%emt 0:00:07]} h6 {[%emt 0:03:47]} 15. Qxf6 {[%emt 0:00:08]} gxf6 {[%emt 0:00:05]} 16. Nd4 {[%emt 0:01:11]} Nxd4 {[%emt 0:03:47]} 17. cxd4 {[%emt 0:00:13]} Rhg8 {[%emt 0:00:15]} 18. Kc1 {[%emt 0:01:01]} f5 {[%emt 0:05:05]} 19. Kd2 {[%emt 0:01:26]} Rde8 {[%emt 0:05:55]} 20. Re1 {[%emt 0:00:37]} Kd8 {[%emt 0:00:16]} 21. a3 {[%emt 0:01:14]} Bd7 {[%emt 0:05:44]} 22. Rxe8+ {[%emt 0:00:14]} Kxe8 {[%emt 0:00:07]} 23. Ke3 {[%emt 0:01:06]} Rg4 {[%emt 0:02:44]} 24. f3 {[%emt 0:00:25]} f4+ {[%emt 0:00:05]} 25. Kf2 {[%emt 0:00:05]} Rg7 {[%emt 0:00:05]} 26. Bd3 {[%emt 0:00:19]} f5 {[%emt 0:00:06]} 27. Re1+ {[%emt 0:00:36]} Re7 {[%emt 0:00:06]} 28. Rxe7+ {[%emt 0:00:12]} Kxe7 {[%emt 0:00:05]} 29. g3 {[%emt 0:00:09]} Kf6 {[%emt 0:00:21]} 30. b4 {[%emt 0:00:25]} fxg3+ {[%emt 0:01:26]} 31. Kxg3 {[%emt 0:00:08]} b6 {[%emt 0:01:00]} 32. c3 {[%emt 0:00:20]} d5 {[%emt 0:01:05]} 33. Kf4 {[%emt 0:00:31]} b5 {[%emt 0:00:08]} 34. Bc2 {[%emt 0:00:09]} c6 {[%emt 0:00:08]} 35. Bd3 {[%emt 0:00:04]} Bc8 {[%emt 0:00:04]} 36. Bc2 {[%emt 0:00:04]} Bd7 {[%emt 0:00:04]} 37. Bd3 {[%emt 0:00:04]} Bc8 {[%emt 0:00:04]} 38. Bc2 {[%emt 0:00:03]} 1/2-1/2

[Event "Chinese Team-ch Men 2025"]
[Site "Zhang Jiakou Hebei"]
[Date "2025.04.30"]
[Round "6.10"]
[White "Li, Di"]
[Black "Xiu, Deshun"]
[Result "0-1"]
[Annotator "ChessBase"]
[ECO "E17"]
[WhiteElo "2571"]
[BlackElo "2516"]
[PlyCount "110"]
[EventDate "2025.04.26"]
[EventType "team-tourn"]
[EventCountry "CHN"]
[SourceTitle "playchess.com"]
[Source "ChessBase"]
[SourceQuality "1"]
[TimeControl "5400+30"]

1. d4 {[%emt 0:00:02]} Nf6 {[%emt 0:00:23]} 2. c4 {[%emt 0:00:04]} e6 {[%emt 0:00:08]} 3. Nf3 {[%emt 0:00:04]} b6 {[%emt 0:01:17]} 4. g3 {[%emt 0:03:46]} Bb7 {[%emt 0:01:02]} 5. Bg2 {[%emt 0:00:05]} Be7 {[%emt 0:00:15]} 6. O-O {[%emt 0:00:05]} O-O {[%emt 0:00:08]} 7. h4 {[%emt 0:01:53]} h6 {[%emt 0:00:58]} 8. Nc3 {[%emt 0:05:17]} Ne4 {[%emt 0:00:58]} 9. Bd2 {[%emt 0:02:45]} f5 {[%emt 0:11:31]} 10. d5 {[%emt 0:08:24]} Bf6 {[%emt 0:08:37]} 11. Qc2 {[%emt 0:03:26]} Bxc3 {[%emt 0:07:55]} 12. Bxc3 {[%emt 0:02:14]} exd5 {[%emt 0:00:09]} 13. cxd5 {[%emt 0:04:21]} Bxd5 {[%emt 0:02:44]} 14. Rfd1 {[%emt 0:00:31]} Bb7 {[%emt 0:07:00]} 15. b4 {[%emt 0:03:39]} a5 {[%emt 0:09:29]} 16. b5 {[%emt 0:03:39]} Qe7 {[%emt 0:09:06]} 17. Ne5 {[%emt 0:28:08]} Kh7 {[%emt 0:03:26]} 18. Bb2 {[%emt 0:09:21]} d6 {[%emt 0:02:02]} 19. Nd3 {[%emt 0:00:07]} Ra7 {[%emt 0:13:49]} 20. Bh3 {[%emt 0:08:06]} Nd7 {[%emt 0:05:09]} 21. Kh2 {[%emt 0:04:28]} Ndc5 {[%emt 0:03:31]} 22. Nf4 {[%emt 0:01:24]} Qf7 {[%emt 0:02:45]} 23. f3 {[%emt 0:01:43]} Nf2 {[%emt 0:00:23]} 24. Rg1 {[%emt 0:01:34]} Nxh3 {[%emt 0:00:56]} 25. Nxh3 {[%emt 0:00:40]} Bc8 {[%emt 0:02:58]} 26. g4 {[%emt 0:00:10]} Qe7 {[%emt 0:02:00]} 27. g5 {[%emt 0:00:25]} h5 {[%emt 0:02:13]} 28. Nf4 {[%emt 0:01:02]} g6 {[%emt 0:01:43]} 29. Nd5 {[%emt 0:02:26]} Qe6 {[%emt 0:00:47]} 30. Nf6+ {[%emt 0:00:15]} Rxf6 {[%emt 0:00:04]} 31. gxf6 {[%emt 0:00:02]} Bd7 {[%emt 0:00:13]} 32. Rg5 {[%emt 0:05:44]} Ra8 {[%emt 0:00:06]} 33. Rag1 {[%emt 0:00:19]} Rg8 {[%emt 0:00:03]} 34. a4 {[%emt 0:00:37]} Qe3 {[%emt 0:00:30]} 35. R1g2 {[%emt 0:00:38]} Qf4+ {[%emt 0:00:31]} 36. Kg1 {[%emt 0:00:06]} Qxh4 {[%emt 0:00:32]} 37. Qd2 {[%emt 0:00:21]} Be6 {[%emt 0:00:19]} 38. Bc1 {[%emt 0:00:57]} Nb3 {[%emt 0:01:32]} 39. Qc3 {[%emt 0:00:38]} Qd4+ {[%emt 0:00:15]} 40. Qxd4 {[%emt 0:00:07]} Nxd4 {[%emt 0:00:01]} 41. Kf2 {[%emt 0:00:33]} Bf7 {[%emt 0:00:31]} 42. Rg1 {[%emt 0:00:44]} Ne6 {[%emt 0:00:13]} 43. R5g2 {[%emt 0:00:04]} Nc5 {[%emt 0:00:25]} 44. Be3 {[%emt 0:01:02]} Nxa4 {[%emt 0:00:05]} 45. Bd4 {[%emt 0:00:23]} Nc5 {[%emt 0:00:21]} 46. Bxc5 {[%emt 0:00:34]} bxc5 {[%emt 0:00:10]} 47. Ra1 {[%emt 0:00:12]} Ra8 {[%emt 0:00:05]} 48. Ke3 {[%emt 0:00:16]} a4 {[%emt 0:01:40]} 49. Ra3 {[%emt 0:00:28]} Bb3 {[%emt 0:00:41]} 50. Kf4 {[%emt 0:00:12]} Kh6 {[%emt 0:00:07]} 51. e4 {[%emt 0:00:09]} fxe4 {[%emt 0:00:09]} 52. fxe4 {[%emt 0:00:03]} Rf8 {[%emt 0:00:08]} 53. e5 {[%emt 0:00:11]} dxe5+ {[%emt 0:00:03]} 54. Kxe5 {[%emt 0:00:03]} Re8+ {[%emt 0:00:05]} 55. Kf4 {[%emt 0:00:06]} Re6 {[%emt 0:00:06]} 0-1